fUST/lending_fUST_20240520
["ID","MTS","AMOUNT","RATE_DAILY","PERIOD"]
[327507653,1716134479072,684.68254526,9.999e-05,2]
[327507654,1716134493702,528.49969732,9.999e-05,2]
[327507655,1716134731175,165.6216,0.00030936,30]
[327507667,1716134873646,156.0,0.00013699,2]
[327507668,1716134915595,464.00462424,0.0003,30]
[327507750,1716135038603,-3059.6898501,0.00016923,2]
[327507751,1716135038612,-167.767291,0.00017199,2]
[327507752,1716135038621,-5516.15808184,0.00017895,2]
[327507753,1716135038632,-1037.05632966,0.00017895,2]
[327507754,1716135039170,183.34508112,9.999e-05,2]
[327507765,1716135041655,-19453.60000001,0.00017895,2]
[327507766,1716135041673,-203.82817734,0.00017895,2]
[327507767,1716135041682,-702.4648627,0.00017896,2]
[327507768,1716135041691,-238.72491025,0.00017896,2]
[327507769,1716135041700,-309.48934336,0.00017896,2]
[327507770,1716135041710,-690.05037694,0.00017896,2]
[327507771,1716135041719,-684.41823565,0.00017896,2]
[327507772,1716135041728,-528.30195722,0.00017896,2]
[327507773,1716135041742,-157.91467169,0.00017897,2]
[327507774,1716135041751,-2634.63767878,0.00017898,2]
[327507775,1716135041760,-382.00359245,0.00018,2]
[327507776,1716135041770,-157.342908,0.00019636,2]
[327507777,1716135041778,-1270.0,0.0002,2]
[327507778,1716135041787,-345.81,0.00020904,3]
[327507779,1716135041796,-172.91,0.00020904,3]
[327507780,1716135041805,-518.75,0.00020904,3]
[327507781,1716135041814,-1094.72744708,0.00020907,2]
[327507782,1716135041823,-158.47759235,0.00020909,2]
[327507783,1716135041832,-1072.09493471,0.00020911,2]
[327507784,1716135041844,-278.34466505,0.00020911,2]
[327507785,1716135041853,-332.13953495,0.00020911,2]
[327507804,1716135043805,-387.82521076,0.00020911,2]
[327507805,1716135043815,-2114.46454517,0.00020911,2]
[327507806,1716135043825,-73.88646343,0.00020911,2]
[327507807,1716135043862,-133.45805128,0.00020911,2]
[327507808,1716135043871,-492.86440031,0.00020911,2]
[327507809,1716135043882,-1133.09508443,0.00020911,2]
[327507810,1716135043891,-309.53572423,0.00020911,2]
[327507811,1716135043900,-2678.78839717,0.00020911,2]
[327507812,1716135043910,-528.45777358,0.00020911,4]
[327507813,1716135043920,-818.53148851,0.00020912,2]
[327507814,1716135043929,-3062.48237355,0.00020912,2]
[327507815,1716135043939,-452.52831116,0.00020912,2]
[327507816,1716135043948,-1897.58698072,0.00020913,2]
[327507817,1716135043956,-835.50091713,0.00020913,2]
[327507818,1716135043966,-9559.52730965,0.00020913,2]
[327507819,1716135043975,-309.64391027,0.00020913,2]
[327507820,1716135043985,-410.45768134,0.00020913,2]
[327507821,1716135043994,-166.666666,0.00021918,2]
[327507822,1716135044003,-159.68754847,0.00022,2]
[327507823,1716135044012,-691.62,0.00022274,3]
[327507824,1716135044022,-345.82,0.00022274,3]
[327507825,1716135044031,-166.666666,0.00022431,2]
[327507827,1716135044040,-166.666666,0.00022944,2]
[327507830,1716135044050,-4691.82133028,0.00023,2]
[327507832,1716135044059,-166.666666,0.00023456,2]
[327507834,1716135044070,-166.666666,0.00023969,2]
[327507835,1716135044080,-187.1445694,0.00024,2]
[327507836,1716135044089,-265.9392,0.00024384,2]
[327507837,1716135044098,-294.849166,0.00024384,2]
[327507838,1716135044107,-166.666666,0.00024482,2]
[327507839,1716135044117,-400.66759561,0.00025,2]
[327507840,1716135044127,-167.40589565,0.00025,2]
[327507841,1716135044136,-167.767291,0.00025799,2]
[327507842,1716135044145,-1019.15478625,0.00026,2]
[327507843,1716135044154,-221.53735836,0.00028,2]
[327507844,1716135044164,-157.371181,0.00028986,2]
[327507845,1716135044173,-1607.47705252,0.0003,30]
[327507846,1716135044185,-351.51832324,0.0003,30]
[327507847,1716135044195,-154.82968734,0.0003,4]
[327507848,1716135044205,-1020.96137704,0.0003,4]
[327507849,1716135044215,-265.9392,0.0003031,2]
[327507850,1716135044225,-153.9805228,0.0003031,2]
[327507851,1716135044238,-140.8686432,0.0003031,2]
[327507852,1716135044346,-157.342908,0.00031074,2]
[327507853,1716135044358,-448.48281368,0.00032,4]
[327507854,1716135044368,-819.9745554,0.00033,4]
[327507855,1716135044378,-467.90063964,0.00034,4]
[327507856,1716135044388,-4761.4488906,0.00035,4]
[327507857,1716135044399,-154.82968734,0.00035,4]
[327507858,1716135044408,-265.9392,0.00036236,2]
[327507859,1716135044418,-294.849166,0.00036236,2]
[327507860,1716135044427,-200.0,0.00036471,120]
[327507861,1716135044438,-1707.57436297,0.00037,2]
[327507862,1716135044451,-12743.04153829,0.00039698,2]
[327507863,1716135044460,-470.60681414,0.000399,2]
[327507864,1716135044470,-310.24817354,0.0004,120]
[327507865,1716135044479,-470.60681411,0.00040996,2]
[327507866,1716135044492,-496.1,0.00041096,30]
[327507867,1716135044502,-470.60681411,0.00042092,2]
[327507868,1716135044511,-265.9392,0.00042163,2]
[327507869,1716135044523,-294.849166,0.00042163,2]
[327507870,1716135044532,-157.342908,0.00042513,2]
[327507871,1716135044541,-27092.972308,0.00043,4]
[327507872,1716135044551,-373.0,0.00043,90]
[327507873,1716135044561,-373.0,0.00043014,90]
[327507874,1716135044570,-470.60681411,0.00043187,2]
[327507875,1716135044579,-683.09671726,0.00043735,3]
[327507876,1716135044588,-577.82429758,0.00043735,2]
[327507877,1716135044598,-9378.70144879,0.00043735,5]
[327507878,1716135044615,-79509.29855121,0.00043735,5]
[327507879,1716135044624,-167.43,0.00043834,7]
[327507880,1716135044633,-167.43,0.00043834,7]
[327507881,1716135044642,-167.43,0.00043834,7]
[327507882,1716135044651,-167.43,0.00043834,7]
[327507883,1716135044660,-167.43,0.00043834,7]
[327507884,1716135044669,-167.47,0.00043834,7]
[327507885,1716135044678,-814.3126228,0.00043835,3]
[327507886,1716135044687,-305.89914608,0.00043835,30]
[327507887,1716135044696,-500.17977179,0.00043835,30]
[327507888,1716135044705,-500.0,0.00043835,30]
[327507889,1716135044715,-307.41035528,0.00043835,30]
[327507890,1716135044724,-500.0,0.00043835,30]
[327507891,1716135044734,-464.97971763,0.00043835,30]
[327507892,1716135044743,-502.47173173,0.00043835,30]
[327507893,1716135044752,-500.0,0.00043835,30]
[327507894,1716135044763,-500.0,0.00043835,30]
[327507895,1716135044774,-500.0,0.00043835,30]
[327507896,1716135044784,-501.30887622,0.00043835,30]
[327507897,1716135044793,-504.6442418,0.00043835,30]
[327507898,1716135044804,-500.0,0.00043835,30]
[327507899,1716135044814,-500.9350361,0.00043835,30]
[327507900,1716135044822,-562.6788788,0.00043835,30]
[327507901,1716135044831,-500.94926223,0.00043835,30]
[327507902,1716135044841,-500.0,0.00043835,30]
[327507903,1716135044851,-500.0,0.00043835,30]
[327507904,1716135044860,-502.01520425,0.00043835,30]
[327507905,1716135044869,-503.3423012,0.00043835,30]
[327507906,1716135044878,-500.0,0.00043835,30]
[327507907,1716135044887,-502.35190748,0.00043835,30]
[327507908,1716135044897,-500.0,0.00043835,30]
[327507909,1716135044907,-502.66384522,0.00043835,30]
[327507910,1716135044916,-503.41471285,0.00043835,30]
[327507911,1716135044925,-500.0,0.00043835,30]
[327507912,1716135044935,-500.0,0.00043835,30]
[327507913,1716135044943,-500.0,0.00043835,30]
[327507914,1716135044952,-509.20246213,0.00043835,30]
[327507915,1716135044962,-550.0,0.00043835,30]
[327507916,1716135044971,-511.14415159,0.00043835,30]
[327507917,1716135044980,-539.54879437,0.00043835,30]
[327507918,1716135044990,-500.0,0.00043835,30]
[327507919,1716135044999,-500.0,0.00043835,30]
[327507920,1716135045008,-500.0,0.00043835,30]
[327507921,1716135045017,-500.0,0.00043835,30]
[327507922,1716135045027,-500.0,0.00043835,30]
[327507923,1716135045037,-500.0,0.00043835,30]
[327507924,1716135045047,-500.0,0.00043835,30]
[327507925,1716135045057,-500.0,0.00043835,30]
[327507926,1716135045067,-289.53949582,0.00043835,30]
[327507927,1716135045077,-580.52,0.00043835,30]
[327507928,1716135045087,-500.0,0.00043835,30]
[327507929,1716135045096,-500.0,0.00043835,30]
[327507930,1716135045106,-500.0,0.00043835,30]
[327507931,1716135045115,-500.0,0.00043835,30]
[327507932,1716135045124,-500.0,0.00043835,30]
[327507933,1716135045135,-503.19134379,0.00043835,30]
[327507934,1716135045144,-500.0,0.00043835,30]
[327507935,1716135045154,-151.0,0.00043835,7]
[327507936,1716135045163,-500.0,0.00043835,30]
[327507937,1716135045172,-500.0,0.00043835,30]
[327507938,1716135045182,-500.0,0.00043835,30]
[327507939,1716135045191,-500.0,0.00043835,30]
[327507940,1716135045201,-592.98323939,0.00043835,30]
[327507941,1716135045210,-500.0,0.00043835,30]
[327507942,1716135045219,-500.0,0.00043835,31]
[327507943,1716135045228,-500.0,0.00043835,32]
[327507944,1716135045238,-493.04170417,0.00043835,33]
[327507945,1716135045247,-508.40780059,0.00043835,30]
[327507946,1716135045256,-502.21381884,0.00043835,30]
[327507947,1716135045265,-503.05824176,0.00043835,30]
[327507948,1716135045275,-292.48134252,0.00043835,30]
[327507949,1716135045284,-500.0,0.00043835,30]
[327507950,1716135045293,-237.75,0.00043835,30]
[327507951,1716135045302,-500.0,0.00043835,30]
[327507952,1716135045310,-500.0,0.00043835,30]
[327507953,1716135045320,-504.02315928,0.00043835,30]
[327507954,1716135045329,-500.0,0.00043835,30]
[327507955,1716135045339,-521.51,0.00043835,30]
[327507956,1716135045348,-502.93279542,0.00043835,30]
[327507957,1716135045357,-502.10667046,0.00043835,30]
[327507958,1716135045367,-500.0,0.00043835,30]
[327507959,1716135045376,-500.0,0.00043835,30]
[327507960,1716135045385,-501.683168,0.00043835,30]
[327507961,1716135045394,-500.0,0.00043835,30]
[327507962,1716135045404,-500.0,0.00043835,30]
[327507963,1716135045413,-500.0,0.00043835,30]
[327507964,1716135045424,-500.0,0.00043835,30]
[327507965,1716135045435,-500.0,0.00043835,30]
[327507966,1716135045448,-500.0,0.00043835,30]
[327507967,1716135045457,-500.0,0.00043835,30]
[327507968,1716135045467,-504.14505607,0.00043835,30]
[327507969,1716135045476,-500.0,0.00043835,30]
[327507970,1716135045487,-500.0,0.00043835,30]
[327507971,1716135045496,-500.0,0.00043835,30]
[327507972,1716135045505,-500.0,0.00043835,30]
[327507973,1716135045514,-500.0,0.00043835,30]
[327507974,1716135045525,-500.0,0.00043835,30]
[327507975,1716135045534,-500.0,0.00043835,30]
[327507976,1716135045544,-544.46,0.00043835,30]
[327507977,1716135045553,-500.0,0.00043835,30]
[327507978,1716135045563,-500.0,0.00043835,30]
[327507979,1716135045572,-247.05,0.00043835,30]
[327507980,1716135045581,-500.60062923,0.00043835,30]
[327507981,1716135045590,-499.99611016,0.00043835,30]
[327507982,1716135045599,-465.72841732,0.00043835,30]
[327507983,1716135045608,-500.0,0.00043835,30]
[327507984,1716135045617,-500.0,0.00043835,30]
[327507985,1716135045627,-524.24240699,0.00043835,30]
[327507986,1716135045636,-500.0,0.00043835,30]
[327507987,1716135045645,-500.0,0.00043835,30]
[327507988,1716135045654,-506.50312563,0.00043835,30]
[327507989,1716135045663,-500.0,0.00043835,30]
[327507990,1716135045672,-500.0,0.00043835,30]
[327507991,1716135045681,-500.0,0.00043835,30]
[327507992,1716135045690,-500.0,0.00043835,30]
[327507993,1716135045700,-500.0,0.00043835,30]
[327507994,1716135045709,-500.0,0.00043835,30]
[327507995,1716135045719,-500.0,0.00043835,30]
[327507996,1716135045728,-500.0,0.00043835,30]
[327507997,1716135045741,-500.66755413,0.00043835,30]
[327507998,1716135045752,-500.0,0.00043835,30]
[327507999,1716135045762,-572.65,0.00043835,30]
[327508000,1716135045771,-500.98365874,0.00043835,30]
[327508001,1716135045781,-500.0,0.00043835,30]
[327508002,1716135045792,-500.46837249,0.00043835,30]
[327508003,1716135045803,-500.0,0.00043835,30]
[327508004,1716135045812,-162.039695,0.00043835,7]
[327508005,1716135045823,-501.00084757,0.00043835,30]
[327508006,1716135045833,-501.35915646,0.00043835,30]
[327508007,1716135045843,-1000.0,0.00043835,30]
[327508008,1716135045853,-500.46550021,0.00043835,30]
[327508009,1716135045863,-504.44804908,0.00043835,30]
[327508010,1716135045873,-500.0,0.00043835,30]
[327508011,1716135045882,-500.0,0.00043835,30]
[327508012,1716135045892,-500.0,0.00043835,30]
[327508013,1716135045901,-417.47249467,0.00043835,30]
[327508014,1716135045911,-500.0,0.00043835,30]
[327508015,1716135045920,-262.68358661,0.00043835,30]
[327508016,1716135045929,-500.0,0.00043835,30]
[327508017,1716135045939,-500.0,0.00043835,30]
[327508018,1716135045948,-500.0,0.00043835,30]
[327508019,1716135045958,-501.43501344,0.00043835,30]
[327508021,1716135045967,-500.0,0.00043835,30]
[327508022,1716135045977,-503.10936398,0.00043835,30]
[327508023,1716135045990,-343.3370825,0.00043835,30]
[327508024,1716135046000,-500.0,0.00043835,30]
[327508025,1716135046010,-500.0,0.00043835,30]
[327508026,1716135046019,-500.0,0.00043835,30]
[327508028,1716135046029,-501.15457218,0.00043835,30]
[327508029,1716135046039,-500.0,0.00043835,30]
[327508030,1716135046048,-255.75158926,0.00043835,30]
[327508031,1716135046058,-500.0,0.00043835,30]
[327508032,1716135046067,-500.0,0.00043835,30]
[327508033,1716135046076,-501.216286,0.00043835,30]
[327508034,1716135046085,-300.0,0.00043835,7]
[327508036,1716135046095,-500.0,0.00043835,30]
[327508038,1716135046104,-500.0,0.00043835,30]
[327508039,1716135046114,-500.0,0.00043835,30]
[327508040,1716135046123,-515.67411646,0.00043835,30]
[327508041,1716135046132,-500.0,0.00043835,30]
[327508042,1716135046141,-413.09358561,0.00043835,30]
[327508043,1716135046151,-539.82879642,0.00043835,30]
[327508044,1716135046161,-500.0,0.00043835,30]
[327508045,1716135046171,-500.0,0.00043835,30]
[327508046,1716135046180,-630.38,0.00043835,30]
[327508047,1716135046190,-500.0,0.00043835,30]
[327508048,1716135046199,-501.33598186,0.00043835,30]
[327508050,1716135046209,-500.0,0.00043835,30]
[327508051,1716135046218,-500.0,0.00043835,30]
[327508052,1716135046228,-500.0,0.00043835,30]
[327508053,1716135046240,-500.17,0.00043835,30]
[327508054,1716135046249,-501.24382206,0.00043835,7]
[327508055,1716135046258,-500.0,0.00043835,30]
[327508056,1716135046266,-500.0,0.00043835,30]
[327508057,1716135046275,-500.0,0.00043835,30]
[327508058,1716135046284,-500.0,0.00043835,30]
[327508059,1716135046294,-383.78514551,0.00043835,30]
[327508060,1716135046303,-381.39477028,0.00043835,30]
[327508062,1716135046313,-500.0,0.00043835,30]
[327508064,1716135046322,-321.12280828,0.00043835,30]
[327508067,1716135046340,-178.87719172,0.00043835,30]
[327508068,1716135046349,-500.0,0.00043835,30]
[327508070,1716135046358,-500.0,0.00043835,30]
[327508072,1716135046368,-504.84163193,0.00043835,30]
[327508074,1716135046378,-500.0,0.00043835,30]
[327508076,1716135046387,-500.0,0.00043835,30]
[327508078,1716135046397,-500.0,0.00043835,30]
[327508079,1716135046405,-151.0,0.00043835,7]
[327508081,1716135046415,-500.0,0.00043835,30]
[327508083,1716135046425,-501.11257562,0.00043835,30]
[327508085,1716135046437,-500.0,0.00043835,30]
[327508087,1716135046447,-501.41407099,0.00043835,30]
[327508088,1716135046457,-500.0,0.00043835,30]
[327508090,1716135046466,-548.98,0.00043835,20]
[327508091,1716135046475,-324.67452974,0.00043835,30]
[327508132,1716135810061,154.82968734,9.999e-05,2]
[327508254,1716136237882,-154.81422293,0.00019179,2]
[327508255,1716136237893,-936.00080974,0.0001918,2]
[327508278,1716136240094,-5331.51420409,0.0001918,2]
[327508279,1716136240104,-157.342908,0.00019281,2]
[327508280,1716136240114,-150.0,0.0001969,3]
[327508281,1716136240124,-1270.0,0.0002,2]
[327508282,1716136240134,-154.82968734,0.00020909,2]
[327508283,1716136240143,-154.82968734,0.0002091,2]
[327508284,1716136240153,-1677.03706618,0.00020911,2]
[327508285,1716136240162,-156.10015172,0.00020911,2]
[327508286,1716136240172,-1712.9168005,0.00020911,2]
[327508287,1716136240181,-194.5804509,0.00020911,2]
[327508288,1716136240191,-156.22241721,0.00020911,2]
[327508289,1716136240203,-156.53311596,0.00020911,2]
[327508290,1716136240213,-1621.171237,0.00020911,2]
[327508308,1716136243147,-7325.0,0.00020911,2]
[327508318,1716136245822,-1502.68996655,0.00020911,2]
[327508320,1716136245832,-21905.61482696,0.00020913,2]
[327508322,1716136245841,-206.95958397,0.00021818,2]
[327508324,1716136245850,-166.666666,0.00021918,2]
[327508326,1716136245860,-159.68754847,0.00022,2]
[327508328,1716136245869,-289.33641641,0.00022274,2]
[327508330,1716136245878,-166.666666,0.00022431,2]
[327508332,1716136245888,-166.666666,0.00022944,2]
[327508333,1716136245897,-4691.82133028,0.00023,2]
[327508334,1716136245906,-166.666666,0.00023456,2]
[327508335,1716136245917,-166.666666,0.00023969,2]
[327508336,1716136245926,-187.1445694,0.00024,2]
[327508337,1716136245936,-235.879332,0.00024384,2]
[327508338,1716136245945,-212.75136,0.00024384,2]
[327508339,1716136245955,-166.666666,0.00024482,2]
[327508340,1716136245965,-167.40589565,0.00025,2]
[327508341,1716136245974,-400.66759561,0.00025,2]
[327508342,1716136245984,-1019.15478625,0.00026,2]
[327508343,1716136245993,-500.0,0.00027,2]
[327508344,1716136246002,-221.53735836,0.00028,2]
[327508345,1716136246012,-157.371181,0.00028986,2]
[327508346,1716136246022,-235.879332,0.0003031,2]
[327508347,1716136246032,-212.75136,0.0003031,2]
[327508348,1716136246041,-448.48281368,0.00032,4]
[327508349,1716136246050,-937.2409487,0.00033,4]
[327508350,1716136246059,-467.90063964,0.00034,4]
[327508351,1716136246068,-206.95958394,0.00034401,2]
[327508352,1716136246077,-157.342908,0.00034532,2]
[327508353,1716136246087,-4761.4488906,0.00035,4]
[327508354,1716136246096,-154.82968734,0.00035,4]
[327508355,1716136246105,-235.879332,0.00036236,2]
[327508356,1716136246114,-212.75136,0.00036236,2]
[327508357,1716136246124,-1707.57436297,0.00037,2]
[327508358,1716136246133,-12743.04153829,0.00039452,2]
[327508359,1716136246143,-310.24817354,0.0004,120]
[327508360,1716136246153,-653.2,0.00041096,30]
[327508361,1716136246163,-150.4,0.00041096,30]
[327508362,1716136246172,-235.879332,0.00042163,2]
[327508363,1716136246182,-212.75136,0.00042163,2]
[327508364,1716136246191,-1000.0,0.00043,43]
[327508365,1716136246201,-5000.0,0.00043,31]
[327508366,1716136246210,-280.0,0.00043,90]
[327508367,1716136246219,-280.0,0.00043014,90]
[327508368,1716136246228,-4221.46001999,0.00043309,2]
[327508369,1716136246238,-416.98047207,0.00043338,2]
[327508370,1716136246247,-161.46119441,0.00043396,3]
[327508371,1716136246256,-182.01276006,0.00043735,2]
[327508372,1716136246268,-2000.0,0.000438,20]
[327508373,1716136246278,-2533.0,0.000438,20]
[327508374,1716136246287,-3090.44437915,0.00043834,10]
[327508375,1716136246296,-7084.00292176,0.00043835,3]
[327508376,1716136246305,-361.27049566,0.00043835,4]
[327508377,1716136246316,-167.84131982,0.00043835,4]
[327508378,1716136246325,-1166.81300233,0.00043835,4]
[327508379,1716136246334,-500.0,0.00043835,30]
[327508380,1716136246343,-500.94952748,0.00043835,30]
[327508381,1716136246354,-500.0,0.00043835,30]
[327508382,1716136246364,-502.56156228,0.00043835,30]
[327508383,1716136246373,-500.0,0.00043835,30]
[327508384,1716136246383,-500.0,0.00043835,30]
[327508385,1716136246392,-500.0,0.00043835,30]
[327508386,1716136246401,-502.19378689,0.00043835,30]
[327508387,1716136246411,-500.0,0.00043835,30]
[327508388,1716136246420,-300.0,0.00043835,7]
[327508389,1716136246430,-502.53192493,0.00043835,30]
[327508390,1716136246439,-502.46471673,0.00043835,30]
[327508391,1716136246449,-500.0,0.00043835,30]
[327508392,1716136246458,-585.04,0.00043835,30]
[327508393,1716136246468,-504.06659722,0.00043835,30]
[327508394,1716136246478,-500.0,0.00043835,30]
[327508395,1716136246487,-207.07269064,0.00043835,30]
[327508396,1716136246496,-501.64087492,0.00043835,30]
[327508397,1716136246505,-500.0,0.00043835,30]
[327508398,1716136246515,-500.0,0.00043835,30]
[327508399,1716136246525,-500.21438575,0.00043835,30]
[327508400,1716136246534,-500.0,0.00043835,30]
[327508401,1716136246543,-500.0,0.00043835,30]
[327508402,1716136246553,-500.0,0.00043835,30]
[327508403,1716136246562,-500.39791796,0.00043835,30]
[327508404,1716136246571,-500.0,0.00043835,30]
[327508405,1716136246581,-1000.0,0.00043835,30]
[327508406,1716136246590,-526.1,0.00043835,20]
[327508407,1716136246600,-500.0,0.00043835,30]
[327508408,1716136246609,-500.0,0.00043835,30]
[327508409,1716136246619,-501.98543412,0.00043835,30]
[327508410,1716136246628,-500.0,0.00043835,30]
[327508411,1716136246638,-501.01404242,0.00043835,30]
[327508412,1716136246647,-500.0,0.00043835,30]
[327508413,1716136246656,-500.0,0.00043835,30]
[327508414,1716136246666,-500.0,0.00043835,30]
[327508415,1716136246676,-393.42177041,0.00043835,30]
[327508416,1716136246685,-500.0,0.00043835,30]
[327508417,1716136246695,-502.41089697,0.00043835,30]
[327508418,1716136246705,-500.4893744,0.00043835,30]
[327508419,1716136246714,-500.0,0.00043835,30]
[327508420,1716136246723,-500.09113619,0.00043835,30]
[327508421,1716136246732,-500.0,0.00043835,30]
[327508422,1716136246742,-497.58485344,0.00043835,30]
[327508423,1716136246751,-500.0,0.00043835,30]
[327508424,1716136246761,-504.12645499,0.00043835,30]
[327508425,1716136246771,-500.0,0.00043835,30]
[327508426,1716136246782,-500.0,0.00043835,30]
[327508427,1716136246790,-500.0,0.00043835,30]
[327508428,1716136246799,-500.0,0.00043835,30]
[327508429,1716136246808,-500.0,0.00043835,30]
[327508430,1716136246818,-500.0,0.00043835,30]
[327508431,1716136246827,-500.0,0.00043835,30]
[327508432,1716136246836,-547.50906583,0.00043835,30]
[327508433,1716136246845,-500.0,0.00043835,30]
[327508434,1716136246854,-500.0,0.00043835,30]
[327508435,1716136246863,-500.0,0.00043835,30]
[327508436,1716136246872,-500.0,0.00043835,30]
[327508437,1716136246882,-500.0,0.00043835,30]
[327508438,1716136246892,-500.0,0.00043835,30]
[327508439,1716136246901,-500.0,0.00043835,30]
[327508440,1716136246910,-253.85877786,0.00043835,30]
[327508441,1716136246919,-500.0,0.00043835,30]
[327508442,1716136246928,-500.0,0.00043835,30]
[327508443,1716136246937,-500.0,0.00043835,30]
[327508444,1716136246946,-500.0,0.00043835,30]
[327508445,1716136246955,-500.0,0.00043835,30]
[327508446,1716136246964,-500.0,0.00043835,30]
[327508447,1716136246974,-500.0,0.00043835,30]
[327508448,1716136246983,-500.0,0.00043835,30]
[327508449,1716136246992,-500.0,0.00043835,30]
[327508450,1716136247001,-500.0,0.00043835,30]
[327508451,1716136247010,-500.0,0.00043835,30]
[327508452,1716136247019,-167.96240653,0.00043835,30]
[327508453,1716136247031,-567.89,0.00043835,30]
[327508454,1716136247040,-500.0,0.00043835,30]
[327508455,1716136247049,-500.0,0.00043835,30]
[327508456,1716136247058,-395.24628114,0.00043835,30]
[327508457,1716136247067,-500.0,0.00043835,30]
[327508458,1716136247076,-500.0,0.00043835,30]
[327508459,1716136247086,-500.0,0.00043835,30]
[327508460,1716136247096,-500.0,0.00043835,30]
[327508461,1716136247105,-607.31,0.00043835,30]
[327508462,1716136247115,-500.0,0.00043835,30]
[327508463,1716136247125,-513.12746266,0.00043835,30]
[327508464,1716136247134,-501.50568853,0.00043835,30]
[327508465,1716136247143,-500.0,0.00043835,30]
[327508466,1716136247153,-500.0,0.00043835,30]
[327508467,1716136247163,-500.0,0.00043835,30]
[327508468,1716136247172,-500.0,0.00043835,30]
[327508469,1716136247182,-502.55552709,0.00043835,30]
[327508470,1716136247191,-500.0,0.00043835,30]
[327508471,1716136247201,-200.79,0.00043835,30]
[327508472,1716136247215,-502.05476015,0.00043835,30]
[327508473,1716136247224,-500.0,0.00043835,30]
[327508474,1716136247233,-500.0,0.00043835,30]
[327508475,1716136247242,-500.0,0.00043835,30]
[327508476,1716136247251,-505.83854385,0.00043835,30]
[327508477,1716136247260,-500.0,0.00043835,30]
[327508478,1716136247269,-504.53878347,0.00043835,30]
[327508479,1716136247281,-500.0,0.00043835,30]
[327508480,1716136247290,-500.0,0.00043835,30]
[327508481,1716136247300,-501.6928506,0.00043835,30]
[327508482,1716136247309,-506.86781249,0.00043835,30]
[327508483,1716136247318,-500.0,0.00043835,30]
[327508484,1716136247328,-504.90525343,0.00043835,30]
[327508485,1716136247337,-500.0,0.00043835,30]
[327508486,1716136247346,-500.0,0.00043835,30]
[327508487,1716136247354,-500.0,0.00043835,30]
[327508488,1716136247363,-562.67,0.00043835,30]
[327508489,1716136247372,-500.0,0.00043835,30]
[327508490,1716136247382,-500.0,0.00043835,30]
[327508491,1716136247391,-500.0,0.00043835,30]
[327508492,1716136247400,-500.0,0.00043835,30]
[327508493,1716136247410,-501.89316035,0.00043835,30]
[327508494,1716136247419,-530.71672133,0.00043835,30]
[327508495,1716136247429,-500.0,0.00043835,30]
[327508496,1716136247438,-500.0,0.00043835,30]
[327508497,1716136247447,-456.11207285,0.00043835,30]
[327508498,1716136247456,-500.0,0.00043835,30]
[327508499,1716136247465,-500.0,0.00043835,30]
[327508500,1716136247474,-500.0,0.00043835,30]
[327508501,1716136247484,-500.0,0.00043835,30]
[327508502,1716136247494,-500.0,0.00043835,30]
[327508503,1716136247503,-510.40175934,0.00043835,30]
[327508504,1716136247512,-567.74176865,0.00043835,30]
[327508505,1716136247521,-500.0,0.00043835,30]
[327508506,1716136247531,-569.7004604,0.00043835,30]
[327508507,1716136247540,-514.39481463,0.00043835,30]
[327508508,1716136247550,-1479.55,0.00043835,30]
[327508509,1716136247560,-621.92,0.00043835,30]
[327508510,1716136247569,-500.0,0.00043835,30]
[327508511,1716136247578,-517.21547026,0.00043835,30]
[327508512,1716136247587,-500.0,0.00043835,30]